[Event "*** Titled Tuesday Blitz"]
[Site "Chess.com"]
[Date "2019.08.06"]
[Round "2"]
[White "JMatias"]
[Black "ChessicallyInclined"]
[Result "1-0"]
[WhiteElo "2460"]
[BlackElo "2573"]
[TimeControl "180+2"]
[EndTime "13:23:02 PDT"]
[Termination "JMatias won by checkmate"]

1. c4 {[%clk 0:03:01.9]} 1... e5 {[%clk 0:02:59.9]} 2. g3 {[%clk 0:03:01.8]}
2... c6 {[%clk 0:03:00.3]} 3. Bg2 {[%clk 0:02:59.6]} 3... d5 {[%clk 0:03:01.2]}
4. cxd5 {[%clk 0:03:00.3]} 4... cxd5 {[%clk 0:03:03.1]} 5. d4 {[%clk 0:03:01.6]}
5... e4 {[%clk 0:03:02.9]} 6. Nh3 {[%clk 0:03:02.2]} 6... Nc6 {[%clk 0:02:58.5]}
7. O-O {[%clk 0:03:02.6]} 7... h6 {[%clk 0:02:59.1]} 8. Nc3 {[%clk 0:03:02.2]}
8... Nf6 {[%clk 0:03:00.3]} 9. f3 {[%clk 0:03:02]} 9... exf3 {[%clk 0:03:00.7]}
10. exf3 {[%clk 0:03:03.9]} 10... Be7 {[%clk 0:02:54.1]} 11. Be3 {[%clk
0:02:59.2]} 11... O-O {[%clk 0:02:54.6]} 12. Re1 {[%clk 0:02:58.9]} 12... Bf5
{[%clk 0:02:47.3]} 13. Nf2 {[%clk 0:02:51.7]} 13... Rc8 {[%clk 0:02:39.4]} 14.
Rc1 {[%clk 0:02:43.3]} 14... Re8 {[%clk 0:02:32.7]} 15. Nd3 {[%clk 0:02:41.6]}
15... Bd6 {[%clk 0:02:33.3]} 16. Bf2 {[%clk 0:02:38.1]} 16... Qd7 {[%clk
0:02:28.1]} 17. Qd2 {[%clk 0:02:31.4]} 17... Bh3 {[%clk 0:02:20.4]} 18. Bh1
{[%clk 0:02:14.2]} 18... Qf5 {[%clk 0:02:05.5]} 19. f4 {[%clk 0:01:51.1]} 19...
Ne4 {[%clk 0:01:47.2]} 20. Nxe4 {[%clk 0:01:49.6]} 20... dxe4 {[%clk 0:01:47.3]}
21. Ne5 {[%clk 0:01:50.8]} 21... Bb4 {[%clk 0:01:37.7]} 22. Rc3 {[%clk
0:01:31.2]} 22... Bxc3 {[%clk 0:01:29.3]} 23. bxc3 {[%clk 0:01:33.1]} 23... Nxe5
{[%clk 0:01:27.2]} 24. fxe5 {[%clk 0:01:34.2]} 24... Qd7 {[%clk 0:01:01.7]} 25.
Bxe4 {[%clk 0:01:29]} 25... Bf5 {[%clk 0:01:02.4]} 26. Bg2 {[%clk 0:01:28]}
26... b6 {[%clk 0:00:53]} 27. d5 {[%clk 0:01:24.8]} 27... Qc7 {[%clk 0:00:37.6]}
28. Bd4 {[%clk 0:01:25.3]} 28... Qc4 {[%clk 0:00:33.5]} 29. Qf4 {[%clk
0:01:19.8]} 29... Bg6 {[%clk 0:00:25.9]} 30. e6 {[%clk 0:01:08.3]} 30... fxe6
{[%clk 0:00:19.8]} 31. Qe5 {[%clk 0:01:08.6]} 31... Re7 {[%clk 0:00:16.9]} 32.
d6 {[%clk 0:00:54.4]} 32... Rd7 {[%clk 0:00:17.6]} 33. Bh3 {[%clk 0:00:43.4]}
33... Bf5 {[%clk 0:00:17.8]} 34. Bg2 {[%clk 0:00:30.2]} 34... Rcd8 {[%clk
0:00:16.2]} 35. h3 {[%clk 0:00:27.5]} 35... Qc8 {[%clk 0:00:11.1]} 36. g4 {[%clk
0:00:28.4]} 36... Bg6 {[%clk 0:00:10.7]} 37. Qxe6+ {[%clk 0:00:29.5]} 37... Bf7
{[%clk 0:00:11.8]} 38. Qe5 {[%clk 0:00:30.1]} 38... Bxa2 {[%clk 0:00:12.7]} 39.
Be4 {[%clk 0:00:24.5]} 39... Kh8 {[%clk 0:00:10.4]} 40. Qf5 {[%clk 0:00:24.1]}
40... Bg8 {[%clk 0:00:11.4]} 41. Qg6 {[%clk 0:00:25.6]} 41... Rf7 {[%clk
0:00:02.3]} 42. Qxh6+ {[%clk 0:00:23.4]} 42... Bh7 {[%clk 0:00:03.9]} 43. Qxh7#
{[%clk 0:00:22.7]} 1-0

[Event "*** Titled Tuesday Blitz"]
[Site "Chess.com"]
[Date "2019.08.06"]
[Round "2"]
[White "pheonixking2000"]
[Black "Yaacovn"]
[Result "1-0"]
[WhiteElo "2704"]
[BlackElo "2824"]
[TimeControl "180+2"]
[EndTime "13:23:03 PDT"]
[Termination "pheonixking2000 won by resignation"]

1. e4 {[%clk 0:02:51.5]} 1... c6 {[%clk 0:02:57.2]} 2. d4 {[%clk 0:02:52.2]}
2... d5 {[%clk 0:02:55.9]} 3. Nc3 {[%clk 0:02:49]} 3... dxe4 {[%clk 0:02:56.9]}
4. Nxe4 {[%clk 0:02:50.9]} 4... Nf6 {[%clk 0:02:58]} 5. Nxf6+ {[%clk 0:02:47.9]}
5... gxf6 {[%clk 0:02:53.7]} 6. Nf3 {[%clk 0:02:47.8]} 6... Bg4 {[%clk
0:02:54.3]} 7. Be3 {[%clk 0:02:45.7]} 7... e6 {[%clk 0:02:53.6]} 8. Bd3 {[%clk
0:02:43.4]} 8... Nd7 {[%clk 0:02:54.1]} 9. Qe2 {[%clk 0:02:43.9]} 9... Nb6
{[%clk 0:02:54.1]} 10. h3 {[%clk 0:02:41.8]} 10... Bh5 {[%clk 0:02:54.9]} 11. c3
{[%clk 0:02:38.6]} 11... Nd5 {[%clk 0:02:55.5]} 12. O-O-O {[%clk 0:02:39]} 12...
Qa5 {[%clk 0:02:53.1]} 13. Kb1 {[%clk 0:02:39.2]} 13... O-O-O {[%clk 0:02:53.8]}
14. Rhe1 {[%clk 0:02:33.9]} 14... Bg6 {[%clk 0:02:53.3]} 15. Nd2 {[%clk
0:02:26.1]} 15... Rg8 {[%clk 0:02:47.3]} 16. g4 {[%clk 0:02:25]} 16... Qb6
{[%clk 0:02:47]} 17. Ka1 {[%clk 0:02:22.6]} 17... Qc7 {[%clk 0:02:46.4]} 18. Nb3
{[%clk 0:02:12.4]} 18... Nf4 {[%clk 0:02:15.7]} 19. Bxf4 {[%clk 0:02:13]} 19...
Qxf4 {[%clk 0:02:15.5]} 20. Qe3 {[%clk 0:02:13.6]} 20... Bd6 {[%clk 0:02:13.1]}
21. Nd2 {[%clk 0:02:03.7]} 21... Qxe3 {[%clk 0:01:58.4]} 22. Rxe3 {[%clk
0:02:05.3]} 22... Bf4 {[%clk 0:01:59.2]} 23. Rf3 {[%clk 0:02:06.4]} 23... Bxd2
{[%clk 0:01:43.3]} 24. Rxd2 {[%clk 0:01:58.5]} 24... f5 {[%clk 0:01:42]} 25. a4
{[%clk 0:01:54.9]} 25... fxg4 {[%clk 0:01:29.4]} 26. hxg4 {[%clk 0:01:56.8]}
26... Rdf8 {[%clk 0:01:27.7]} 27. Rf4 {[%clk 0:01:51.4]} 27... Kd7 {[%clk
0:01:27.4]} 28. Kb1 {[%clk 0:01:46.9]} 28... Ke7 {[%clk 0:01:13.9]} 29. Kc2
{[%clk 0:01:46.4]} 29... b6 {[%clk 0:01:01.7]} 30. Re2 {[%clk 0:01:45.9]} 30...
Kd6 {[%clk 0:01:01.2]} 31. b4 {[%clk 0:01:44.4]} 31... Rg7 {[%clk 0:00:54.7]}
32. c4 {[%clk 0:01:44.6]} 32... Rh8 {[%clk 0:00:54.6]} 33. c5+ {[%clk
0:01:42.3]} 33... Kd7 {[%clk 0:00:55.4]} 34. Re5 {[%clk 0:01:40.1]} 34... bxc5
{[%clk 0:00:52.8]} 35. dxc5 {[%clk 0:01:37.7]} 35... Ke7 {[%clk 0:00:53.7]} 36.
b5 {[%clk 0:01:28.3]} 36... Rd8 {[%clk 0:00:54]} 37. Bxg6 {[%clk 0:01:27.2]}
37... hxg6 {[%clk 0:00:50.2]} 38. b6 {[%clk 0:01:27.4]} 38... a5 {[%clk
0:00:48.3]} 39. g5 {[%clk 0:01:27]} 39... Rh7 {[%clk 0:00:48]} 40. Re3 {[%clk
0:01:24.4]} 40... Rh1 {[%clk 0:00:45.4]} 41. Rd3 {[%clk 0:01:15.7]} 41... Rd5
{[%clk 0:00:36.6]} 42. Rxd5 {[%clk 0:01:07.1]} 42... exd5 {[%clk 0:00:37.4]} 43.
Rf6 {[%clk 0:01:06.9]} 43... Rh4 {[%clk 0:00:28.3]} 44. Rxc6 {[%clk 0:01:07.3]}
44... Rxa4 {[%clk 0:00:27.4]} 45. b7 {[%clk 0:01:06]} 45... Rb4 {[%clk
0:00:27.7]} 46. Rb6 {[%clk 0:01:06.3]} 1-0

[Event "*** Titled Tuesday Blitz"]
[Site "Chess.com"]
[Date "2019.08.06"]
[Round "2"]
[White "Ravan_02"]
[Black "Chopper1905"]
[Result "0-1"]
[WhiteElo "2607"]
[BlackElo "2829"]
[TimeControl "180+2"]
[EndTime "13:23:04 PDT"]
[Termination "Chopper1905 won by resignation"]

1. d4 {[%clk 0:03:01.3]} 1... e6 {[%clk 0:02:59.1]} 2. c4 {[%clk 0:03:01.4]}
2... Nf6 {[%clk 0:02:59.9]} 3. Nf3 {[%clk 0:02:59.2]} 3... b6 {[%clk 0:02:59.3]}
4. a3 {[%clk 0:03:00.2]} 4... Bb7 {[%clk 0:02:59.9]} 5. Nc3 {[%clk 0:03:01.2]}
5... Ne4 {[%clk 0:02:58.1]} 6. Nxe4 {[%clk 0:02:54.7]} 6... Bxe4 {[%clk
0:03:00]} 7. Nd2 {[%clk 0:02:56.2]} 7... Bg6 {[%clk 0:02:59.7]} 8. g3 {[%clk
0:02:45.8]} 8... Nc6 {[%clk 0:02:43.1]} 9. Nf3 {[%clk 0:02:45.9]} 9... Be4
{[%clk 0:02:33.6]} 10. Bg2 {[%clk 0:02:46]} 10... d5 {[%clk 0:02:32]} 11. Qa4
{[%clk 0:02:24.1]} 11... dxc4 {[%clk 0:02:22]} 12. Qxc4 {[%clk 0:02:20.5]} 12...
Nxd4 {[%clk 0:01:44.3]} 13. O-O {[%clk 0:01:51.5]} 13... Nxf3+ {[%clk
0:01:33.1]} 14. Bxf3 {[%clk 0:01:32.4]} 14... Bxf3 {[%clk 0:01:33.7]} 15. exf3
{[%clk 0:01:34.3]} 15... c5 {[%clk 0:01:24.7]} 16. Bf4 {[%clk 0:01:33.3]} 16...
Qd5 {[%clk 0:01:25.1]} 17. Qa4+ {[%clk 0:01:03.1]} 17... Qd7 {[%clk 0:01:25.9]}
18. Qb3 {[%clk 0:00:58.4]} 18... Be7 {[%clk 0:01:23.9]} 19. Rfd1 {[%clk
0:00:58.1]} 19... Qc6 {[%clk 0:01:24.9]} 20. Be5 {[%clk 0:00:55]} 20... O-O
{[%clk 0:01:25.1]} 21. Rd2 {[%clk 0:00:55.3]} 21... Rfd8 {[%clk 0:01:25.3]} 22.
Rad1 {[%clk 0:00:55.1]} 22... Rxd2 {[%clk 0:01:25.7]} 23. Rxd2 {[%clk 0:00:57]}
23... Rd8 {[%clk 0:01:25.4]} 24. Rxd8+ {[%clk 0:00:52.6]} 24... Bxd8 {[%clk
0:01:27.3]} 25. Qd3 {[%clk 0:00:47.9]} 25... Be7 {[%clk 0:01:27.5]} 26. Kg2
{[%clk 0:00:37.9]} 26... c4 {[%clk 0:01:24.8]} 27. Qe3 {[%clk 0:00:25.1]} 27...
f6 {[%clk 0:01:24.5]} 28. Bc3 {[%clk 0:00:25.6]} 28... e5 {[%clk 0:01:18.8]} 29.
h4 {[%clk 0:00:26.6]} 29... Kf7 {[%clk 0:01:17.7]} 30. h5 {[%clk 0:00:26.9]}
30... Bc5 {[%clk 0:01:17.1]} 31. Qe2 {[%clk 0:00:27.1]} 31... b5 {[%clk
0:01:13.4]} 32. Qc2 {[%clk 0:00:28.1]} 32... g6 {[%clk 0:01:13.5]} 33. Qd2
{[%clk 0:00:28.5]} 33... e4 {[%clk 0:01:10.6]} 34. Qh6 {[%clk 0:00:22]} 34...
exf3+ {[%clk 0:01:10.4]} 35. Kg1 {[%clk 0:00:23.1]} 35... gxh5 {[%clk
0:00:48.2]} 36. Qxh7+ {[%clk 0:00:23.4]} 36... Ke6 {[%clk 0:00:45.4]} 37. Qxh5
{[%clk 0:00:18.8]} 37... Qd5 {[%clk 0:00:33.7]} 38. Qxd5+ {[%clk 0:00:11.8]}
38... Kxd5 {[%clk 0:00:34.7]} 39. Bxf6 {[%clk 0:00:13.2]} 39... a5 {[%clk
0:00:33.8]} 40. Bd8 {[%clk 0:00:09.7]} 40... b4 {[%clk 0:00:31.7]} 41. Bxa5
{[%clk 0:00:06.5]} 41... c3 {[%clk 0:00:33]} 42. bxc3 {[%clk 0:00:04.6]} 42...
b3 {[%clk 0:00:34.3]} 43. c4+ {[%clk 0:00:04.7]} 43... Kxc4 {[%clk 0:00:35.2]}
44. Be1 {[%clk 0:00:05.1]} 44... b2 {[%clk 0:00:36.2]} 0-1

[Event "*** Titled Tuesday Blitz"]
[Site "Chess.com"]
[Date "2019.08.06"]
[Round "2"]
[White "sebsep"]
[Black "politeplayer"]
[Result "0-1"]
[WhiteElo "2111"]
[BlackElo "2256"]
[TimeControl "180+2"]
[EndTime "13:23:06 PDT"]
[Termination "politeplayer won by checkmate"]

1. e4 {[%clk 0:03:01.9]} 1... c5 {[%clk 0:03:00]} 2. Nf3 {[%clk 0:03:01.7]} 2...
Nc6 {[%clk 0:03:01.3]} 3. d4 {[%clk 0:03:01.6]} 3... cxd4 {[%clk 0:03:02.6]} 4.
Nxd4 {[%clk 0:03:01.6]} 4... g6 {[%clk 0:03:04]} 5. Be3 {[%clk 0:03:00.6]} 5...
Bg7 {[%clk 0:03:04.8]} 6. Nc3 {[%clk 0:03:02.1]} 6... Nf6 {[%clk 0:03:05]} 7. f3
{[%clk 0:03:01.4]} 7... d5 {[%clk 0:03:02.9]} 8. Nxc6 {[%clk 0:02:58.9]} 8...
bxc6 {[%clk 0:03:02.9]} 9. Bd3 {[%clk 0:02:51.1]} 9... d4 {[%clk 0:02:56.5]} 10.
Bd2 {[%clk 0:02:31.7]} 10... dxc3 {[%clk 0:02:55]} 11. Bxc3 {[%clk 0:02:33.6]}
11... Qb6 {[%clk 0:02:48.9]} 12. a4 {[%clk 0:02:30.8]} 12... a5 {[%clk 0:02:39]}
13. Bc4 {[%clk 0:02:26.6]} 13... Qe3+ {[%clk 0:02:33.7]} 14. Kf1 {[%clk
0:02:23.8]} 14... Qc5 {[%clk 0:02:22.5]} 15. Bd3 {[%clk 0:02:05.7]} 15... O-O
{[%clk 0:02:14.5]} 16. Qe2 {[%clk 0:02:06.5]} 16... Nh5 {[%clk 0:02:07.5]} 17.
Bd2 {[%clk 0:02:05.5]} 17... Bxb2 {[%clk 0:02:02]} 18. Rb1 {[%clk 0:02:06.2]}
18... Bc3 {[%clk 0:01:57]} 19. Be3 {[%clk 0:02:06.5]} 19... Bd4 {[%clk
0:01:54.8]} 20. Bd2 {[%clk 0:02:07.2]} 20... Be6 {[%clk 0:01:48.3]} 21. g4
{[%clk 0:02:07.9]} 21... Ng7 {[%clk 0:01:39.2]} 22. h4 {[%clk 0:02:06.6]} 22...
f5 {[%clk 0:01:39.2]} 23. exf5 {[%clk 0:01:48.9]} 23... gxf5 {[%clk 0:01:38.3]}
24. g5 {[%clk 0:01:50]} 24... Bd5 {[%clk 0:01:33.2]} 25. h5 {[%clk 0:01:50.3]}
25... e5 {[%clk 0:01:25.7]} 26. c4 {[%clk 0:01:34.1]} 26... Bxf3 {[%clk
0:01:14.1]} 27. Qxf3 {[%clk 0:01:31.5]} 27... e4 {[%clk 0:01:15.3]} 28. Qg2
{[%clk 0:01:21]} 28... exd3 {[%clk 0:01:14.1]} 29. h6 {[%clk 0:01:19.4]} 29...
Ne8 {[%clk 0:00:34.7]} 30. g6 {[%clk 0:01:18.3]} 30... Ra7 {[%clk 0:00:21.4]}
31. Rb8 {[%clk 0:01:05]} 31... Nf6 {[%clk 0:00:18.6]} 32. gxh7+ {[%clk
0:00:41.4]} 32... Kxh7 {[%clk 0:00:19]} 33. Qg3 {[%clk 0:00:24.2]} 33... Rxb8
{[%clk 0:00:15]} 34. Qxb8 {[%clk 0:00:26.1]} 34... Re7 {[%clk 0:00:13.5]} 35.
Qf4 {[%clk 0:00:21.6]} 35... Ng4 {[%clk 0:00:12.5]} 36. Rh5 {[%clk 0:00:20.3]}
36... Bf6 {[%clk 0:00:12.1]} 37. Rxf5 {[%clk 0:00:20.6]} 37... Nh2+ {[%clk
0:00:09.6]} 38. Qxh2 {[%clk 0:00:20.1]} 38... Qxf5+ {[%clk 0:00:09.5]} 39. Kg1
{[%clk 0:00:18.4]} 39... Re2 {[%clk 0:00:09.3]} 40. Qg3 {[%clk 0:00:18]} 40...
Rxd2 {[%clk 0:00:08.8]} 41. Qc7+ {[%clk 0:00:18.1]} 41... Kg6 {[%clk 0:00:08.7]}
42. h7 {[%clk 0:00:18.5]} 42... Qf2+ {[%clk 0:00:09.2]} 43. Kh1 {[%clk
0:00:19.8]} 43... Qg2# {[%clk 0:00:10.6]} 0-1

[Event "*** Titled Tuesday Blitz"]
[Site "Chess.com"]
[Date "2019.08.06"]
[Round "2"]
[White "SergeiAza"]
[Black "S-Fazulyanov"]
[Result "0-1"]
[WhiteElo "2813"]
[BlackElo "2479"]
[TimeControl "180+2"]
[EndTime "13:23:06 PDT"]
[Termination "S-Fazulyanov won by resignation"]

1. e4 {[%clk 0:03:01.9]} 1... c5 {[%clk 0:03:01]} 2. Nf3 {[%clk 0:03:02.7]} 2...
Nc6 {[%clk 0:03:02.6]} 3. d4 {[%clk 0:03:03.7]} 3... cxd4 {[%clk 0:03:04.3]} 4.
Nxd4 {[%clk 0:03:05]} 4... g6 {[%clk 0:03:04.4]} 5. Nc3 {[%clk 0:03:00.3]} 5...
Bg7 {[%clk 0:03:05.1]} 6. Be3 {[%clk 0:03:01.9]} 6... Nf6 {[%clk 0:03:06.7]} 7.
Bc4 {[%clk 0:03:02.1]} 7... Na5 {[%clk 0:03:08.1]} 8. Be2 {[%clk 0:02:39.3]}
8... O-O {[%clk 0:03:08.7]} 9. O-O {[%clk 0:02:38.3]} 9... d5 {[%clk 0:03:10]}
10. exd5 {[%clk 0:02:28.4]} 10... Nxd5 {[%clk 0:03:09.2]} 11. Nxd5 {[%clk
0:02:29.1]} 11... Qxd5 {[%clk 0:03:10.7]} 12. Bf3 {[%clk 0:02:29.5]} 12... Qd8
{[%clk 0:03:11.8]} 13. b3 {[%clk 0:02:09.8]} 13... a6 {[%clk 0:02:48.9]} 14. c4
{[%clk 0:02:05.7]} 14... Qc7 {[%clk 0:02:41.1]} 15. Qe2 {[%clk 0:01:49.1]} 15...
e5 {[%clk 0:02:39.2]} 16. Nc2 {[%clk 0:01:47.7]} 16... e4 {[%clk 0:02:40.4]} 17.
Bxe4 {[%clk 0:01:44.6]} 17... Bxa1 {[%clk 0:02:41.4]} 18. Rxa1 {[%clk
0:01:45.7]} 18... Re8 {[%clk 0:02:37.9]} 19. Bf3 {[%clk 0:01:38.6]} 19... Nc6
{[%clk 0:02:38.6]} 20. Qd2 {[%clk 0:01:13.4]} 20... Bf5 {[%clk 0:02:33.4]} 21.
Nb4 {[%clk 0:01:00.3]} 21... Nxb4 {[%clk 0:02:14.9]} 22. Qxb4 {[%clk 0:01:01.2]}
22... Be4 {[%clk 0:02:15.1]} 23. Bxe4 {[%clk 0:00:40.8]} 23... Rxe4 {[%clk
0:02:17]} 24. g3 {[%clk 0:00:35.1]} 24... Rae8 {[%clk 0:02:16.2]} 25. Rd1 {[%clk
0:00:34.4]} 25... h5 {[%clk 0:02:11.6]} 26. Qd6 {[%clk 0:00:28.9]} 26... Qxd6
{[%clk 0:01:52.9]} 27. Rxd6 {[%clk 0:00:30.8]} 27... h4 {[%clk 0:01:53.5]} 28.
Kg2 {[%clk 0:00:31.1]} 28... hxg3 {[%clk 0:01:53.9]} 29. hxg3 {[%clk 0:00:32.4]}
29... R4e6 {[%clk 0:01:52.8]} 30. Rd7 {[%clk 0:00:32.8]} 30... R6e7 {[%clk
0:01:53.4]} 31. Rd6 {[%clk 0:00:33.7]} 31... Re6 {[%clk 0:01:34.6]} 32. Rd7
{[%clk 0:00:34.7]} 32... R8e7 {[%clk 0:01:19.6]} 33. Rd8+ {[%clk 0:00:35.2]}
33... Kh7 {[%clk 0:01:21]} 34. a4 {[%clk 0:00:36.3]} 34... f6 {[%clk 0:01:19.5]}
35. a5 {[%clk 0:00:35.6]} 35... Re8 {[%clk 0:01:20.4]} 36. Rd7+ {[%clk
0:00:36.1]} 36... R8e7 {[%clk 0:01:21.9]} 37. Rd8 {[%clk 0:00:37]} 37... Re8
{[%clk 0:01:23.6]} 38. Rd5 {[%clk 0:00:37.2]} 38... g5 {[%clk 0:01:20.9]} 39.
Kf3 {[%clk 0:00:37.6]} 39... Kg6 {[%clk 0:01:22.1]} 40. g4 {[%clk 0:00:38.9]}
40... Re5 {[%clk 0:01:21.4]} 41. Rd7 {[%clk 0:00:36.7]} 41... R8e7 {[%clk
0:01:22.7]} 42. Rxe7 {[%clk 0:00:18.1]} 42... Rxe7 {[%clk 0:01:24.6]} 43. b4
{[%clk 0:00:17.6]} 43... f5 {[%clk 0:01:22.5]} 44. gxf5+ {[%clk 0:00:15.1]}
44... Kxf5 {[%clk 0:01:24.4]} 45. b5 {[%clk 0:00:16.6]} 45... g4+ {[%clk
0:01:21.5]} 46. Kg3 {[%clk 0:00:17.5]} 46... Re4 {[%clk 0:01:20.6]} 47. bxa6
{[%clk 0:00:17.1]} 47... bxa6 {[%clk 0:01:22.5]} 48. c5 {[%clk 0:00:18.7]} 48...
Ra4 {[%clk 0:01:21.3]} 49. c6 {[%clk 0:00:18.3]} 49... Rc4 {[%clk 0:01:22.2]}
50. Bb6 {[%clk 0:00:18.8]} 50... Rxc6 {[%clk 0:01:22.8]} 51. Kg2 {[%clk
0:00:19.4]} 51... Rc3 {[%clk 0:01:22.3]} 52. Kf1 {[%clk 0:00:20]} 52... Rb3
{[%clk 0:01:20.8]} 53. Ke2 {[%clk 0:00:21]} 53... Ke4 {[%clk 0:01:22.2]} 54. Bc5
{[%clk 0:00:21]} 54... Rb2+ {[%clk 0:01:22.4]} 55. Kf1 {[%clk 0:00:22]} 55...
Kf3 {[%clk 0:01:23.7]} 56. Ke1 {[%clk 0:00:22.5]} 56... Ra2 {[%clk 0:01:22.3]}
57. Bb6 {[%clk 0:00:22.2]} 57... Ra1+ {[%clk 0:01:21.1]} 58. Kd2 {[%clk
0:00:23.6]} 58... Ra2+ {[%clk 0:01:23]} 59. Ke1 {[%clk 0:00:24.2]} 59... Ra1+
{[%clk 0:01:23.7]} 60. Kd2 {[%clk 0:00:25.4]} 60... Rf1 {[%clk 0:01:25.3]} 61.
Kd3 {[%clk 0:00:19]} 61... Rxf2 {[%clk 0:01:24.8]} 0-1

[Event "*** Titled Tuesday Blitz"]
[Site "Chess.com"]
[Date "2019.08.06"]
[Round "2"]
[White "AndrewMaco"]
[Black "Durarbayli"]
[Result "0-1"]
[WhiteElo "2599"]
[BlackElo "2792"]
[TimeControl "180+2"]
[EndTime "13:23:10 PDT"]
[Termination "Durarbayli won by resignation"]

1. e4 {[%clk 0:03:01.9]} 1... e5 {[%clk 0:02:56.7]} 2. Nf3 {[%clk 0:03:02.8]}
2... Nc6 {[%clk 0:02:57.5]} 3. Bb5 {[%clk 0:03:04.3]} 3... a6 {[%clk 0:02:58.7]}
4. Ba4 {[%clk 0:03:03.1]} 4... Nf6 {[%clk 0:02:58]} 5. O-O {[%clk 0:03:04.6]}
5... b5 {[%clk 0:02:58.2]} 6. Bb3 {[%clk 0:03:04.9]} 6... Bc5 {[%clk 0:02:59.6]}
7. c3 {[%clk 0:03:04.2]} 7... d6 {[%clk 0:02:59.4]} 8. d4 {[%clk 0:03:04.9]}
8... Bb6 {[%clk 0:03:00.2]} 9. h3 {[%clk 0:03:02.8]} 9... O-O {[%clk 0:02:58.3]}
10. Be3 {[%clk 0:03:02.5]} 10... Rb8 {[%clk 0:02:55.5]} 11. Nbd2 {[%clk
0:03:01.4]} 11... h6 {[%clk 0:02:52.3]} 12. Re1 {[%clk 0:03:00.5]} 12... Re8
{[%clk 0:02:51.6]} 13. a3 {[%clk 0:02:56.6]} 13... Bb7 {[%clk 0:02:37.5]} 14.
Bc2 {[%clk 0:02:41.1]} 14... exd4 {[%clk 0:02:12.7]} 15. cxd4 {[%clk 0:02:41.6]}
15... Na5 {[%clk 0:02:13.3]} 16. d5 {[%clk 0:02:35.3]} 16... Bxe3 {[%clk
0:02:11.5]} 17. Rxe3 {[%clk 0:02:37.2]} 17... c6 {[%clk 0:02:09.5]} 18. b4
{[%clk 0:02:36.1]} 18... Nc4 {[%clk 0:02:08.5]} 19. Nxc4 {[%clk 0:02:37.5]}
19... bxc4 {[%clk 0:02:09.3]} 20. Ba4 {[%clk 0:02:38.9]} 20... Qb6 {[%clk
0:01:10.7]} 21. Qd4 {[%clk 0:02:37]} 21... Ba8 {[%clk 0:01:02.6]} 22. Rae1
{[%clk 0:02:20.4]} 22... Rec8 {[%clk 0:00:55.2]} 23. dxc6 {[%clk 0:02:09.9]}
23... Bxc6 {[%clk 0:00:54.6]} 24. Bc2 {[%clk 0:01:55.6]} 24... Qxd4 {[%clk
0:00:32.6]} 25. Nxd4 {[%clk 0:01:57.5]} 25... Bd7 {[%clk 0:00:34.1]} 26. Rd1
{[%clk 0:01:45.5]} 26... a5 {[%clk 0:00:31.5]} 27. bxa5 {[%clk 0:01:36.7]} 27...
Rc5 {[%clk 0:00:31.4]} 28. Nf3 {[%clk 0:01:32.9]} 28... Rb2 {[%clk 0:00:30]} 29.
Rc3 {[%clk 0:01:25.5]} 29... d5 {[%clk 0:00:29.9]} 30. e5 {[%clk 0:01:08.8]}
30... Ne8 {[%clk 0:00:25.6]} 31. Nd4 {[%clk 0:01:03.5]} 31... Rxa5 {[%clk
0:00:23.2]} 32. Bf5 {[%clk 0:01:02.2]} 32... Ba4 {[%clk 0:00:20.9]} 33. Re1
{[%clk 0:01:01.5]} 33... g6 {[%clk 0:00:22]} 34. Bg4 {[%clk 0:00:58.5]} 34... h5
{[%clk 0:00:22.1]} 35. Bf3 {[%clk 0:00:59.8]} 35... Nc7 {[%clk 0:00:23]} 36. e6
{[%clk 0:00:53.5]} 36... fxe6 {[%clk 0:00:23]} 37. Nxe6 {[%clk 0:00:54.9]} 37...
Nxe6 {[%clk 0:00:23]} 38. Rxe6 {[%clk 0:00:56.8]} 38... Kf7 {[%clk 0:00:24]} 39.
Rce3 {[%clk 0:00:57.9]} 39... Rb7 {[%clk 0:00:11.1]} 40. Rd6 {[%clk 0:00:55.5]}
40... Rd7 {[%clk 0:00:12.5]} 41. Ree6 {[%clk 0:00:49.5]} 41... Rxd6 {[%clk
0:00:13.3]} 42. Rxd6 {[%clk 0:00:51.4]} 42... c3 {[%clk 0:00:14.5]} 43. Rxd5
{[%clk 0:00:38.1]} 43... c2 {[%clk 0:00:11.9]} 44. Rxa5 {[%clk 0:00:26.1]} 44...
c1=Q+ {[%clk 0:00:12.9]} 0-1

[Event "*** Titled Tuesday Blitz"]
[Site "Chess.com"]
[Date "2019.08.06"]
[Round "2"]
[White "ChrisTool2"]
[Black "GremioPrudente"]
[Result "0-1"]
[WhiteElo "2271"]
[BlackElo "2230"]
[TimeControl "180+2"]
[EndTime "13:23:10 PDT"]
[Termination "GremioPrudente won by resignation"]

1. d4 {[%clk 0:03:01.9]} 1... d5 {[%clk 0:03:00.6]} 2. c4 {[%clk 0:03:02.3]}
2... c6 {[%clk 0:03:01.6]} 3. Nf3 {[%clk 0:03:02]} 3... e6 {[%clk 0:03:02.7]} 4.
Nc3 {[%clk 0:02:57.3]} 4... dxc4 {[%clk 0:03:03.1]} 5. g3 {[%clk 0:02:51]} 5...
b5 {[%clk 0:03:01.7]} 6. Bg2 {[%clk 0:02:52]} 6... Bb7 {[%clk 0:03:03]} 7. O-O
{[%clk 0:02:52.3]} 7... Nd7 {[%clk 0:02:51.8]} 8. e4 {[%clk 0:02:53]} 8... h6
{[%clk 0:02:28.4]} 9. Qc2 {[%clk 0:02:52.2]} 9... Ngf6 {[%clk 0:02:19.2]} 10.
Rd1 {[%clk 0:02:51]} 10... Bb4 {[%clk 0:02:15.1]} 11. Bf4 {[%clk 0:02:47.2]}
11... O-O {[%clk 0:02:06.2]} 12. e5 {[%clk 0:02:38.6]} 12... Nd5 {[%clk
0:02:05.6]} 13. Ne4 {[%clk 0:02:40.1]} 13... Nxf4 {[%clk 0:01:54.5]} 14. gxf4
{[%clk 0:02:42]} 14... f5 {[%clk 0:01:56]} 15. Ng3 {[%clk 0:01:30.8]} 15... Nb6
{[%clk 0:01:50.7]} 16. b3 {[%clk 0:01:30.1]} 16... Qe7 {[%clk 0:01:48.3]} 17. a4
{[%clk 0:01:22.5]} 17... cxb3 {[%clk 0:01:39.7]} 18. Qxb3 {[%clk 0:01:22.8]}
18... bxa4 {[%clk 0:01:41.1]} 19. Qa2 {[%clk 0:01:18]} 19... Nd5 {[%clk
0:01:42.1]} 20. Qc4 {[%clk 0:01:01.2]} 20... a5 {[%clk 0:01:36]} 21. Bh3 {[%clk
0:00:40.8]} 21... Nxf4 {[%clk 0:01:35.9]} 22. Bxf5 {[%clk 0:00:40.7]} 22... Ba6
{[%clk 0:01:28.3]} 23. Qa2 {[%clk 0:00:41.5]} 23... Nd5 {[%clk 0:01:22.5]} 24.
Be4 {[%clk 0:00:40.5]} 24... Nc3 {[%clk 0:01:15.3]} 25. Qc2 {[%clk 0:00:40.5]}
25... Nxd1 {[%clk 0:01:15.8]} 26. Rxd1 {[%clk 0:00:36.6]} 26... Bb5 {[%clk
0:01:12]} 27. Nh5 {[%clk 0:00:30.6]} 27... Rac8 {[%clk 0:01:03.7]} 28. Kh1
{[%clk 0:00:31.3]} 28... Qf7 {[%clk 0:00:56.1]} 29. Bh7+ {[%clk 0:00:16.1]}
29... Kh8 {[%clk 0:00:56.3]} 30. Nh4 {[%clk 0:00:17.8]} 30... Qxh5 {[%clk
0:00:48.4]} 31. Ng6+ {[%clk 0:00:18.4]} 31... Kxh7 {[%clk 0:00:38.2]} 32. Nxf8+
{[%clk 0:00:19.8]} 32... Kg8 {[%clk 0:00:39.7]} 33. Nxe6 {[%clk 0:00:13]} 33...
Qf3+ {[%clk 0:00:30]} 34. Kg1 {[%clk 0:00:14.2]} 34... Qg4+ {[%clk 0:00:31.6]}
35. Kh1 {[%clk 0:00:14.3]} 35... Qxe6 {[%clk 0:00:32.9]} 36. f4 {[%clk
0:00:13.9]} 36... Qd5+ {[%clk 0:00:33.7]} 37. Kg1 {[%clk 0:00:15.1]} 37... Rf8
{[%clk 0:00:33.3]} 38. f5 {[%clk 0:00:15.5]} 38... Qf3 {[%clk 0:00:31.3]} 39. f6
{[%clk 0:00:15.2]} 39... Be2 {[%clk 0:00:21.4]} 40. Qg6 {[%clk 0:00:07.2]} 40...
Qg4+ {[%clk 0:00:20.3]} 41. Qxg4 {[%clk 0:00:08.2]} 41... Bxg4 {[%clk
0:00:21.5]} 42. Rc1 {[%clk 0:00:08.3]} 42... gxf6 {[%clk 0:00:21.2]} 43. Rxc6
{[%clk 0:00:08.5]} 43... fxe5 {[%clk 0:00:20.7]} 44. Rg6+ {[%clk 0:00:09.3]}
44... Kh7 {[%clk 0:00:21.5]} 45. Rxg4 {[%clk 0:00:11.2]} 45... Rg8 {[%clk
0:00:21.8]} 0-1